Cogmind - Beta 16 @@@ ROGUE MODE // 2025.11.17 @ 21:22:35 // Winter2019/RPGLIKE Player: Jaegerpls Result: Destroyed by S-10 Pest with Light Assault Rifle Performance ------------- Evolutions (0) 0 Regions Visited (2) 400 Robots Destroyed (48) 240 Value Destroyed (1225) 1225 Prototype IDs (12) 240 Alien Tech Used (0) 0 Bonus (0) 0 TOTAL SCORE: 2105 Bonus ------- None Cogmind --------- Core Integrity 0/750 Matter 177/300 Energy 125/125 System Corruption 0% Temperature Cool (0) Movement Treading (160) Location -10/Subcaves Parts ------- > --- POWER (1+4) ------ Light Ion Engine > --- PROPULSION (2+1) - Improved Treads Improved Treads > --- UTILITY (5+1) ---- Improved Terrain Scanner Makeshift Light Armor Plating Power Bank (+) Rainbow Chip > --- WEAPON (2+1) ----- Battle Cannon Battle Cannon > --- INVENTORY (1) ---- Light Nuclear Core Peak State ------------ > --- POWER ------------ Light Nuclear Core > --- PROPULSION ------- Improved Treads Improved Treads > --- UTILITY ---------- Improved Terrain Scanner Scrap Shield Power Bank Rainbow Chip > --- WEAPON ----------- Battle Cannon Battle Cannon > --- INVENTORY -------- (None) [Rating: 40] Favorites ----------- Power Light Nuclear Core Engine Light Ion Engine Power Core Light Nuclear Core Propulsion Improved Treads Treads Improved Treads Wheel Wheel Flight Unit VTOL Module Utility Improved Terrain Scanner Device Improved Terrain Scanner Processor Rainbow Chip Hackware Hacking Suite Protection Light Armor Plating Weapon Battle Cannon Ballistic Gun Assault Rifle Ballistic Cannon Battle Cannon Build | -11 -10 -10 ------- Run | Yrd Mat Sub Slots Evolved 6 | 4 1 1 Power . | . . . Propulsion 1 | 1 . . Utility 4 | 2 1 1 Weapon 1 | 1 . . Parts Attached 28 | 7 11 10 Power 4 | 1 2 1 Engine 3 | 1 1 1 Core 1 | . 1 . Reactor . | . . . Propulsion 7 | 2 5 . Treads 4 | 2 2 . Leg . | . . . Wheel 1 | . 1 . Hover . | . . . Flight 2 | . 2 . Utility 10 | 2 2 6 Device 3 | 2 . 1 Storage . | . . . Processor 1 | . . 1 Hackware 2 | . 1 1 Protection 4 | . 1 3 Artifact . | . . . Weapon 7 | 2 2 3 Energy Gun . | . . . Energy Cannon . | . . . Ballistic Gun 2 | 2 . . Ballistic Cannon 5 | . 2 3 Launcher . | . . . Special Weapon . | . . . Impact Weapon . | . . . Slashing Weapon . | . . . Piercing Weapon . | . . . Special Melee Weapon . | . . . Unidentified Prototypes . | . . . Parts Lost 1 | . . 1 Power . | . . . Propulsion . | . . . Utility 1 | . . 1 Weapon . | . . . Highest Loss Streak 1 | . . 1 To Critical Strikes . | . . . Average Backups . | . . . Power . | . . . Propulsion . | . . . Utility . | . . . Weapon . | . . . Tool/Special . | . . . Unused Backups 3 | . . 3 Power . | . . . Propulsion . | . . . Utility . | . . . Weapon 3 | . . 3 Tool/Special . | . . . Average Slot Usage (%) 80 | . 96 74 Engine 1 | . 3 1 Core 7 | . 8 7 Treads 18 | . 21 16 Device 16 | . 22 14 Processor 2 | . . 3 Hackware 3 | . . 4 Protection 8 | . 10 8 Ballistic Cannon 18 | . 21 16 Peak Build Rating 40 | 9 19 40 Average Rating 24 | 4 14 28 On Entrance 9 | . 9 19 Avg Prop Armor Cover (%) . | . . . Naked Turns . | . . . Heaviest Build 33 | 10 18 33 Greatest Support 46 | 40 46 46 Greatest Overweight (x) 3 | . 3 . Average Overweight (x) . | . . . Largest Inventory Capacity 1 | 1 1 1 Average Capacity 1 | 1 1 1 Most Carried 1 | . 1 1 Average Carried . | . . . Final Capacity 1 | 1 1 1 Final Carried 1 | . 1 1 Class Distribution -------------------- 98% | Mutant Dominant Class ---------------- Mutant | -10/Materials Mutant | -10/Subcaves Resources | -11 -10 -10 ----------- Run | Yrd Mat Sub Matter Collected 1655 | 302 543 810 Remotely 851 | 176 377 298 Salvage Created 913 | 102 384 427 Parts 87 | 8 45 34 Haulers Intercepted 1 | . 1 . Recyclers Shooed 1 | . 1 . Parts Field Recycled . | . . . Retrieved Matter . | . . . Parts Self-Destructed 15 | . . 15 Prevented . | . . . Parts Restored . | . . . Kills | -11 -10 -10 ------- Run | Yrd Mat Sub Combat Hostiles Destroyed 34 | . 13 21 Cannons 34 | . 13 21 Classes Destroyed 11 | 2 6 3 Builder 1 | . 1 . Tunneler 4 | 1 3 . Hauler 1 | . 1 . Recycler 2 | 1 1 . Operator 2 | . 2 . Turret 2 | . . 2 Watcher 2 | . 2 . Swarmer 10 | . 3 7 Grunt 10 | . 10 . Sentry 1 | . . 1 Subdweller 13 | . . 13 Best Kill Streak 6 | 2 6 5 Combat Bots Only 4 | . 4 3 Max Kills in Single Turn 1 | 1 1 1 Gunslinging . | . . . Exploded . | . . . Melee . | . . . Uniques/NPCs Destroyed . | . . . Combat | -11 -10 -10 -------- Run | Yrd Mat Sub Hostile Shots Fired 190 | . 57 133 Missed 57 | . 14 43 Hits 133 | . 43 90 Projectile 133 | . 43 90 Critical Strikes 2 | . . 2 Damage Taken 1807 | . 492 1315 Core 1210 | . 349 861 Absorbed by Shields . | . . . Redirected to Core 1041 | . 325 716 Core Remaining (%) 100 | 100 . . Volleys Fired 153 | 8 56 89 Largest 2 | 2 2 2 Hottest 66 | 40 66 66 Shots Fired 299 | 16 111 172 Gun 37 | 16 21 . Cannon 262 | . 90 172 Launcher . | . . . Special . | . . . Kinetic 299 | 16 111 172 Thermal . | . . . Explosive . | . . . Electromagnetic . | . . . Robot Hit Streak 12 | 5 12 11 Robot Miss Streak 7 | 2 7 4 Penetration Max . | . . . Secondary Targets . | . . . Shots Hit Robots 169 | 10 65 94 Core Hits 65 | 4 27 34 Critical Kills . | . . . Critical Parts Destroyed . | . . . Critical Strikes 10 | . 6 4 Blast 10 | . 6 4 Melee Attacks . | . . . Impact . | . . . Slashing . | . . . Piercing . | . . . Sneak Attacks . | . . . Combat Hostiles . | . . . Follow-up Attacks . | . . . Damage Inflicted 3363 | 116 1308 1939 Guns 224 | 116 108 . Cannons 3139 | . 1200 1939 Explosions . | . . . Melee . | . . . Ramming . | . . . Kinetic 3363 | 116 1308 1939 Thermal . | . . . Explosive . | . . . Electromagnetic . | . . . Impact . | . . . Slashing . | . . . Piercing . | . . . Highest Corruption . | . . . Average Corruption . | . . . Corruption Purged . | . . . Corruption Blocked . | . . . Overload Shots . | . . . Overflow Damage 26 | . 19 7 Projectiles 26 | . 19 7 Explosions . | . . . Melee . | . . . Knockbacks 36 | . 14 22 Impact . | . . . Kinetic 35 | . 13 22 Secondary 1 | . 1 . Self-Inflicted Damage . | . . . Shots . | . . . Rammed . | . . . Targets Rammed . | . . . Kicked . | . . . Crushed . | . . . Highest Temperature 268 | . 10 268 Average Temperature 37 | . 3 144 Received Heat Transfer 800 | . 231 569 Siege Activations . | . . . Martial Activations . | . . . Shielding Activations . | . . . Robots Disrupted . | . . . Combat Hostiles . | . . . Robots Corrupted . | . . . Combat Hostiles . | . . . Parts Fried . | . . . Impact Corruptions . | . . . Robots Melted . | . . . Combat Hostiles . | . . . Parts Melted . | . . . Heat Transferred . | . . . Parts Sabotaged . | . . . Parts Stolen . | . . . Parts Stripped . | . . . Power Chain Reactions . | . . . Alert | -11 -10 -10 ------- Run | Yrd Mat Sub Maximum Alert Level . | . . . Low Security (%) 100 | 100 100 . Level 1 . | . . . Level 2 . | . . . Level 3 . | . . . Level 4 . | . . . Level 5 . | . . . High Security . | . . . Max Security . | . . . Peak Influence 136 | 10 136 . Initial . | . . . Average 35 | 1 36 . Influence Increases 751 | 10 421 320 Destroy 0b10 Robot/C 460 | . 260 200 Destroy 0b10 Robot/NC 60 | 10 50 . Destroy Leader 56 | . 56 . Successful Hack 18 | . 18 . Disable Machine 15 | . 15 . Destroy Structure 7 | . 7 . Lose Combat Pursuer 135 | . 15 120 Influence Decreases 531 | 10 382 139 Entered New Map 19 | . . 19 Time Decay 502 | 10 382 110 Lost Part 10 | . . 10 Squads Dispatched 1 | . 1 . Investigation 1 | . 1 . Extermination . | . . . Reinforcement . | . . . Assault . | . . . Garrison . | . . . Intercept . | . . . Searches Triggered . | . . . Construction Impeded . | . . . Haulers Reinforced . | . . . Active Scanning Responses . | . . . Cargo Convoy Interrupts . | . . . Stealth | -11 -10 -10 --------- Run | Yrd Mat Sub Distress Signals 3 | . 3 . Communications Jammed . | . . . Distress Signals . | . . . Times Spotted 53 | . 23 30 Peak Tracking Total 6 | . 6 6 Tactical Retreats 6 | . 1 5 Traps | -11 -10 -10 ------- Run | Yrd Mat Sub Traps Triggered 2 | . 1 1 Indirectly . | . . . Trap Hack Attempts . | . . . Triggered . | . . . Disarmed . | . . . Reprogrammed . | . . . Reused . | . . . Traps Extracted . | . . . Installed . | . . . Triggered . | . . . Machines | -11 -10 -10 ---------- Run | Yrd Mat Sub Machines Disabled 3 | . 1 2 Max in Single Turn 1 | . 1 1 Machines Repaired . | . . . Machines Dismantled . | . . . Machines Sabotaged . | . . . Overloaded Fab Kills . | . . . Hacking | -11 -10 -10 --------- Run | Yrd Mat Sub Machines Accessed 11 | . 8 3 Terminals 6 | . 6 . Fabricators . | . . . Repair Stations . | . . . Recycling Units 2 | . 2 . Scanalyzers . | . . . Garrison Access . | . . . Total Hacks 30 | . 18 12 Successful 24 | . 12 12 Failed 6 | . 6 . Catastrophic . | . . . Database Lockouts . | . . . Manual 17 | . 17 . Terminals 13 | . 13 . Fabricators . | . . . Repair Stations . | . . . Recycling Units 5 | . 5 . Scanalyzers . | . . . Garrison Access . | . . . Terminal Hacks 13 | . 1 12 Record 9 | . . 9 Robot Analysis 1 | . 1 . Open Door 1 | . . 1 Proto ID Catalog 1 | . . 1 Release Object 1 | . . 1 Fabricator Hacks . | . . . Repair Station Hacks . | . . . Recycling Unit Hacks 2 | . 2 . Report Inventory 2 | . 2 . Scanalyzer . | . . . Garrison Access Hacks . | . . . Unauthorized Hacks 9 | . 9 . Terminals 7 | . 7 . Botnet 2 | . 2 . Skim 5 | . 5 . Fabricators . | . . . Repair Stations . | . . . Recycling Units 2 | . 2 . Reject 2 | . 2 . Scanalyzers . | . . . Garrison Access . | . . . Data Cores Recovered 2 | . 2 . Used 1 | . 1 . Hacking Detections 7 | . 7 . Full Trace Events . | . . . Feedback Events . | . . . Feedback Blocked . | . . . Robot Schematics Acquired . | . . . Robots Built . | . . . Authchips . | . . . Time . | . . . Total Robot Build Rating . | . . . Part Schematics Acquired . | . . . Parts Built . | . . . Authchips . | . . . Time . | . . . Total Part Build Rating . | . . . Part Studies Acquired . | . . . Parts Repaired . | . . . Time . | . . . Parts Recycled . | . . . Recycled Matter . | . . . Retrieved Matter . | . . . Retrieved Components . | . . . Parts Scanalyzed . | . . . Part Schematics Acquired . | . . . Parts Damaged . | . . . Bothacking | -11 -10 -10 ------------ Run | Yrd Mat Sub Used RIF Installer . | . . . Robots Hacked . | . . . Non-combat . | . . . Combat . | . . . Robot Hacks Applied . | . . . Relay Couplers Released . | . . . Fabnet Peak Effective % . | . . . Robots Rewired . | . . . Allies Hacked . | . . . Hacks Repelled . | . . . Allies | -11 -10 -10 -------- Run | Yrd Mat Sub Total Allies . | . . . Largest Group . | . . . Highest-Rated Group . | . . . Highest-Rated Ally . | . . . Total Orders . | . . . Ally Attacks . | . . . Total Damage . | . . . Kills . | . . . Allies Corrupted . | . . . Allies Melted . | . . . Intel | -11 -10 -10 ------- Run | Yrd Mat Sub Active Infowar (turns) 5432 | 5 1478 3949 Terrain 5432 | 5 1478 3949 Robot Analysis Total 1 | . 1 . Derelict Logs Recovered 1 | . . 1 Drone Launches . | . . . Drone Recoveries . | . . . Exploration | -11 -10 -10 ------------- Run | Yrd Mat Sub Turns Passed 5503 | 67 1478 3958 Spaces Moved 2489 | 26 818 1645 Core 8 | 6 2 . Treads 2367 | 20 702 1645 Legs . | . . . Wheels 22 | . 22 . Hover . | . . . Flight 92 | . 92 . Fastest Speed 32 | 50 32 160 Average Speed 155 | 134 146 160 Slowest Speed 200 | 160 200 160 Overloaded Moves . | . . . Propulsion Burnouts . | . . . Robots Hopped . | . . . Potential Cave-ins . | . . . Cave-ins Triggered . | . . . Exploration Rate (%) 58 | 4 89 82 Regions Visited 2 Branch Regions 1 Pre-discovered Areas 3 | . 1 2 Known Exits Taken 1 | . 1 . Unknown Exits Taken 1 | 1 . . Scrap Searched 20 | . . 20 Spaces Dug 1 | . . 1 Terrain Destroyed 5 | . 2 3 Melee . | . . . Projectile 5 | . 2 3 AOE . | . . . Terrain Rammed . | . . . Walls Destroyed . | . . . Machines Disabled . | . . . Actions | -11 -10 -10 --------- Run | Yrd Mat Sub Total 3830 | 40 988 2802 Wait 1101 | . 73 1028 Move 2487 | 25 817 1645 Hop . | . . . Pick Up 5 | . 2 3 Fast Attach 22 | 7 9 6 Attach 2 | . 1 1 Detach 5 | . 2 3 Swap 8 | . 4 4 Drop 19 | . 9 10 Fire 153 | 8 56 89 Melee . | . . . Ram . | . . . Kick . | . . . Crush . | . . . Escape Stasis . | . . . Rewire . | . . . Trap . | . . . Miscellaneous 28 | . 15 13 Route ------- -11/Scrapyard -10/Materials (discovered 5 exits: *Mat x3 / *Min / *Sub) -10/Subcaves (discovered 3 exits: *Mat x2 / [*Rec]) History --------- Turn | Location | Event 1 | -11/Scrapyard | Upgraded with Propulsion slot (x1) 1 | -11/Scrapyard | Upgraded with Utility slot (x2) 1 | -11/Scrapyard | Upgraded with Weapon slot (x1) 15 | -11/Scrapyard | Discovered new exit (range 16) 68 | -11/Scrapyard | Entered Materials 145 | -10/Materials | Discovered new exit (range 15) 539 | -10/Materials | Build established: Mutant 559 | -10/Materials | Discovered new exit (range 13) 697 | -10/Materials | Discovered new exit (range 7) 896 | -10/Materials | Discovered new exit (range 15) 957 | -10/Materials | Discovered new exit (range 10) 1223 | -10/Materials | Learned 4 Subcaves zone layouts 1291 | -10/Materials | Learned Storage interactive machine intel 1351 | -10/Materials | Learned Storage trap positions 1378 | -10/Materials | Reached level 2 1431 | -10/Materials | Upgraded with Utility slot (x1) 1467 | -10/Materials | Identified exit to Materials 1467 | -10/Materials | Identified exit to Subcaves 1467 | -10/Materials | Identified exit to Mines 1546 | -10/Materials | Entered Subcaves 1547 | -10/Subcaves | Approached by a straggling Scientist 1547 | -10/Subcaves | Identified exit to Materials 1586 | -10/Subcaves | Discovered new exit (range 14) 2226 | -10/Subcaves | Discovered exit to Materials (range 10) 2902 | -10/Subcaves | Shifting Twisted Machinery released Riot Gun 3060 | -10/Subcaves | Released subatomizers from SUBCON Basin 3203 | -10/Subcaves | Core integrity fell below 50% 3305 | -10/Subcaves | Visited 4L-MR0's lab 3330 | -10/Subcaves | Found Rainbow Chip 3331 | -10/Subcaves | Attached Rainbow Chip, gained temporary slots: Power, Propulsion, Utility, Weapon 3769 | -10/Subcaves | Learned location of Zion (-6) 3769 | -10/Subcaves | Met a Zionite searching for "candidates" 4015 | -10/Subcaves | A Subdweller sparked back to life 4015 | -10/Subcaves | A Subdweller sparked back to life 4042 | -10/Subcaves | Found Power Bank 4044 | -10/Subcaves | Attached Power Bank, gained temporary slots: Power x3 4206 | -10/Subcaves | Core integrity fell below 20% 4515 | -10/Subcaves | Reached level 3 4521 | -10/Subcaves | Upgraded with Utility slot (x1) 4601 | -10/Subcaves | Shifting Twisted Machinery released Sub. Power Source 4612 | -10/Subcaves | Shifting Twisted Machinery released Mak. Light Armor Plating 5504 | -10/Subcaves | Destroyed by S-10 Pest with Light Assault Rifle Last Messages --------------- Mak. Light Armor Plating falls loose from the Twisted Machinery. 04629_ Acquired Mak. Light Armor Plating. 04703_ Critical hit (Meltdown: +290). 04704_ KC-2S4(R) knocked back. 04720_ KC-2S4(R) affixes Scrap Shield Fragment to Scrap Shield. 04725_ KC-2S4(R) destroyed. 04734_ Acquired 1 matter. 04739_ Acquired 8 matter. 04955_ Acquired 4 matter. 05009_ S-10 Pest destroyed. 05012_ Acquired 18 matter. 05025_ Flight Unit fries itself beyond repair. 05400_ Acquired 48 matter. 05402_ S-10 Pest destroyed. 05405_ Acquired 98 matter. 05406_ Acquired 9 matter. 05412_ Flight Unit fries itself beyond repair. 05499_ S-10 Pest knocked back. 05502_ S-10 Pest Flight Unit blasted off. 05502_ S-10 Pest destroyed. Map ----- +----------------------------------------------------+ | ###### #### ####### % ## ## | | ##### ### ####### ##### ## | | #### ###### ## ####### ########## | | %### ###### #### ######## ########### | | %### ########################?############## | | #### #############?###?###################### | | ###* ######################################## | | !##= ####################################### | | && ####################################### | | &#### ######################?############### | | " ##### ##################??#####?#??###?#?#### | | " ###### ###########?#?##?###?##?####?#???##?### | | #####################?#######?##?#####?######## | | =%[## ##################???#??#???##?#?######## | | = ###################?#??#???#????####?## | | # "## #########?############?##?????????#?#### | | ##### ## ###########??#####?##?##??????????####? | | ##### ## ###########?#?##?#??###???#????????#?## | | #### # ##########??########????##??????????### | | # # ############# #?##????????????????# | | ####### ##?##?????###????????? | | ##### #??#?#????##?????????? | | ### ###### #?????????#?#????????? | | ####### ####### ### ####?#?##????????????? | | ## ########### ##### #?#???##?##??#????????? | | ############ ### @###???#??##?## ????????? | | ########### ## # ## ####? ? ????????? | | ######## % ??????????? | | ### ### ## ss= ??????????? | | #### ## ##### ## ### ??????????? | | #### ### ###?## % ###?#???? ??????????? | | ######### ######## &##???##???#?????????? | | ######## ########## #??##?# ????????????? | | ######## #######?## #### ?????????????? | | ## ##?##?#### #? ? ? ???????????? | | ### ?####?# ??????????????? | | # % ### #### ####? ?????????????? | | # #### #### ?## ?????????????? | | ######## % ##### ? ??????????????? | | ###### ###### ??### ???????????????? | | #### ###### ? ?#?##??????????????????? | | ### ##### ? ??????????????????????? | | ###### ### ? ??#?????????????????????? | | # #### ## ? ?????????????????????????? | | ###? #? ?????????????????????????? | | #######?? ?###???????????????????????? | | #### #######?? ??????????????????????????? | | ##### #######?##?#???????????????????????????? | | #####################?#??????????????????????????? | | ###############?#?###????????????????????????????? | +----------------------------------------------------+ Best States ------------- Heat Dissipation 43 Energy Generation 14 Energy Capacity 250 Matter Stores 300 Matter Capacity 300 Sight Range 16 Robot Scan Range 8 Terrain Scan Range 16 Terrain Scan Density 310 Armor Coverage 800 Evasion (%) 63 Recoil Reduction 2 Offensive Hacking 11 Item Schematics ----------------- None Robot Schematics ------------------ None Fabricated ------------ Nothing Repaired ---------- Nothing Studied --------- None Alien Tech Used ----------------- None Achievements -------------- None Challenges ------------ None RPGLIKE | -11 -10 -10 --------- Run | Yrd Mat Sub Levels Raised 2 | . 1 1 XP Earned 6655 | 3000 1655 2000 XP Spent 5985 | 2990 1100 1895 Upgrades 20 | 11 1 8 Propulsion Slot 1 | 1 . . Utility Slot 4 | 2 1 1 Weapon Slot 1 | 1 . . Core Integrity 3 | . . 3 Heat Dissipation 3 | 2 . 1 Inventory Capacity 1 | 1 . . Sensor Range 4 | 1 . 3 Terrain Scan Density 3 | 3 . . Protomatter Created 172 | . 118 54 Integrity Restored 478 | . 316 162 Core 453 | . 291 162 Parts 25 | . 25 . Protomatter Decayed 97 | . 12 85 Game ------ Seed NullEfficiencyHammerchucker Manual? 0 Play Time 00:41:14 Cumulative 68.3 hours Start 2025.11.17 @ 21:00:54 End 2025.11.17 @ 21:22:35 Sessions 2 Manual Loads 0 Difficulty Rogue Special Mode Winter2019/RPGLIKE Game No. 67 Rogue 67 Adventurer 0 Explorer 0 Win Type - Total 0 Types 0/0/0/0/0/0/0/0/0/0 Lore% 57 Gallery% 36 Achievement% 33 Wizard Run 0 Options --------- Layout 0 ASCII 0 Keyboard 0 Movement Mouse Keybinds 0 Fullscreen 2 Font 24/Smallcaps Map View 76x50 Zoom Use 0% Tactical HUD 1 Map Filters NONE Filters NONE Steam 1 RUN: 7cae2a13-b7b9-4db2-bd1e-31dcca896564